fUSD/lending_fUSD_20260510
["ID","MTS","AMOUNT","RATE_DAILY","PERIOD"]
[421955663,1778368246000,-892.95,0.00041096,120]
[421955666,1778368246000,-892.95,0.00041096,120]
[421955659,1778368246000,-1485.283808,0.00041096,120]
[421955665,1778368246000,-892.95,0.00041096,120]
[421955662,1778368246000,-892.95,0.00041096,120]
[421955664,1778368246000,-892.95,0.00041096,120]
[421955607,1778368246000,-500.0,0.00041095,2]
[421955661,1778368246000,-892.95,0.00041096,120]
[421955660,1778368246000,-1485.283808,0.00041096,120]
[421955658,1778368246000,-1485.283808,0.00041096,120]
[421955668,1778368246000,-892.95,0.00041096,120]
[421955670,1778368246000,-151.0,0.00041096,120]
[421955673,1778368246000,-151.0,0.00041096,120]
[421955656,1778368246000,-180.127043,0.00041096,120]
[421955645,1778368246000,-300.0,0.00041095,2]
[421955667,1778368246000,-892.95,0.00041096,120]
[421955638,1778368246000,-500.0,0.00041095,2]
[421955644,1778368246000,-300.0,0.00041095,2]
[421955614,1778368246000,-500.0,0.00041095,2]
[421955612,1778368246000,-500.0,0.00041095,2]
[421955618,1778368246000,-500.0,0.00041095,2]
[421955620,1778368246000,-500.0,0.00041095,2]
[421955610,1778368246000,-500.0,0.00041095,2]
[421955621,1778368246000,-500.0,0.00041095,2]
[421955623,1778368246000,-500.0,0.00041095,2]
[421955625,1778368246000,-500.0,0.00041095,2]
[421955624,1778368246000,-500.0,0.00041095,2]
[421955628,1778368246000,-500.0,0.00041095,2]
[421955627,1778368246000,-500.0,0.00041095,2]
[421955619,1778368246000,-500.0,0.00041095,2]
[421955640,1778368246000,-300.0,0.00041095,2]
[421955626,1778368246000,-500.0,0.00041095,2]
[421955634,1778368246000,-500.0,0.00041095,2]
[421955637,1778368246000,-500.0,0.00041095,2]
[421955632,1778368246000,-173.39733273,0.00041095,2]
[421955630,1778368246000,-500.0,0.00041095,2]
[421955639,1778368246000,-285.41938658,0.00041095,2]
[421955633,1778368246000,-500.0,0.00041095,2]
[421955631,1778368246000,-500.0,0.00041095,2]
[421955629,1778368246000,-500.0,0.00041095,2]
[421955641,1778368246000,-300.0,0.00041095,2]
[421955635,1778368246000,-500.0,0.00041095,2]
[421955636,1778368246000,-500.0,0.00041095,2]
[421955730,1778368247000,-151.0,0.00041096,120]
[421955788,1778368247000,-150.0,0.00041096,120]
[421955756,1778368247000,-159.66,0.00041096,120]
[421955760,1778368247000,-201.06,0.00041096,120]
[421955773,1778368247000,-150.0,0.00041096,120]
[421955777,1778368247000,-150.0,0.00041096,120]
[421955764,1778368247000,-201.06,0.00041096,120]
[421955784,1778368247000,-150.0,0.00041096,120]
[421955769,1778368247000,-150.0,0.00041096,120]
[421955801,1778368247000,-1205.02624961,0.000411,120]
[421955791,1778368247000,-155.26736171,0.00041096,120]
[421955806,1778368247000,-1205.02624961,0.000411,120]
[421955805,1778368247000,-1205.02624961,0.000411,120]
[421955803,1778368247000,-1205.02624961,0.000411,120]
[421955808,1778368247000,-1205.02624961,0.000411,120]
[421955819,1778368247000,-1205.02624961,0.000411,120]
[421955807,1778368247000,-1205.02624961,0.000411,120]
[421955810,1778368247000,-1205.02624961,0.000411,120]
[421955734,1778368247000,-4881.304762,0.00041096,14]
[421955794,1778368247000,-190.0,0.000411,120]
[421955752,1778368247000,-159.66,0.00041096,60]
[421955691,1778368247000,-151.0,0.00041096,120]
[421955742,1778368247000,-424.823195,0.00041096,120]
[421955826,1778368247000,-1205.02624961,0.000411,120]
[421955682,1778368247000,-151.0,0.00041096,120]
[421955679,1778368247000,-151.0,0.00041096,120]
[421955676,1778368247000,-151.0,0.00041096,120]
[421955685,1778368247000,-151.0,0.00041096,120]
[421955697,1778368247000,-151.0,0.00041096,7]
[421955699,1778368247000,-151.0,0.00041096,7]
[421955688,1778368247000,-151.0,0.00041096,120]
[421955702,1778368247000,-151.0,0.00041096,7]
[421955747,1778368247000,-424.823195,0.00041096,120]
[421955694,1778368247000,-151.0,0.00041096,7]
[421955707,1778368247000,-151.0,0.00041096,120]
[421955719,1778368247000,-151.0,0.00041096,120]
[421955721,1778368247000,-151.0,0.00041096,120]
[421955712,1778368247000,-151.0,0.00041096,120]
[421955725,1778368247000,-4881.304762,0.00041096,14]
[421955710,1778368247000,-4881.304762,0.00041096,14]
[421955716,1778368247000,-4881.304762,0.00041096,14]
[421955727,1778368247000,-424.823195,0.00041096,120]
[421955739,1778368247000,-424.823195,0.00041096,120]
[421955704,1778368247000,-214.216042,0.00041096,7]
[421955821,1778368247000,-1205.02624961,0.000411,120]
[421955823,1778368247000,-1205.02624961,0.000411,120]
[421955814,1778368247000,-1205.02624961,0.000411,120]
[421955852,1778368247000,-611.52,0.000414,7]
[421955854,1778368247000,-1000.0,0.00041406,120]
[421955855,1778368247000,-153.74,0.00041417,120]
[421955858,1778368247000,-17750.2512197,0.0004144,2]
[421955867,1778368247000,-22636.7286744,0.00041538,2]
[421955866,1778368247000,-2171.0049425,0.00041538,2]
[421955860,1778368247000,-214.05284582,0.00041473,120]
[421955859,1778368247000,-1198.27551,0.0004144,120]
[421955868,1778368247000,-3012.9464234,0.00041538,2]
[421955851,1778368247000,-353.0,0.00041388,14]
[421955857,1778368247000,-503.0,0.00041437,19]
[421955865,1778368247000,-153.74,0.00041517,120]
[421955863,1778368247000,-3585.75,0.00041491,2]
[421955862,1778368247000,-150.43,0.0004149,120]
[421955869,1778368247000,-246.14849,0.00041538,7]
[421955870,1778368247000,-151.0,0.00041538,120]
[421955871,1778368247000,-246.14849,0.00041538,7]
[421955872,1778368247000,-246.14849,0.00041538,7]
[421955873,1778368247000,-246.14849,0.00041538,7]
[421955812,1778368247000,-1205.02624961,0.000411,120]
[421955864,1778368247000,-254228.90550488,0.000415,120]
[421955856,1778368247000,-1000.0,0.0004143,120]
[421955861,1778368247000,-200.0,0.00041488,120]
[421955850,1778368247000,-1000.0,0.00041365,120]
[421955817,1778368247000,-1205.02624961,0.000411,120]
[421955853,1778368247000,-1000.0,0.00041404,120]
[421955829,1778368247000,-1205.02624961,0.000411,120]
[421955828,1778368247000,-1205.02624961,0.000411,120]
[421955831,1778368247000,-1205.02624961,0.000411,120]
[421955844,1778368247000,-3733.21,0.0004125,120]
[421955833,1778368247000,-1205.02624961,0.000411,120]
[421955841,1778368247000,-1101.25,0.000412,90]
[421955842,1778368247000,-153.74,0.00041217,120]
[421955836,1778368247000,-1000.0,0.00041124,120]
[421955843,1778368247000,-1000.0,0.00041244,120]
[421955835,1778368247000,-153.74,0.00041117,120]
[421955840,1778368247000,-282.29,0.000412,30]
[421955838,1778368247000,-2400.0,0.00041187,30]
[421955837,1778368247000,-152.0,0.00041161,7]
[421955845,1778368247000,-546.0,0.0004128,30]
[421955849,1778368247000,-1205.02624961,0.00041343,120]
[421955847,1778368247000,-154.45974035,0.0004131,2]
[421955839,1778368247000,-2400.0,0.00041187,60]
[421955848,1778368247000,-153.74,0.00041317,120]
[421955846,1778368247000,-151.0,0.000413,120]
[421955905,1778368248000,-350.0,0.00041757,5]
[421955911,1778368248000,-1205.02,0.0004176,120]
[421955909,1778368248000,-182.99162514,0.0004176,2]
[421955915,1778368248000,-943.0,0.00041774,60]
[421955906,1778368248000,-250.0,0.00041758,120]
[421955907,1778368248000,-792.79213028,0.00041759,4]
[421955914,1778368248000,-700.0,0.0004177,3]
[421955912,1778368248000,-471.0,0.00041768,2]
[421955908,1778368248000,-2066.61378429,0.0004176,2]
[421955913,1778368248000,-700.0,0.0004177,3]
[421955917,1778368248000,-943.0,0.00041774,60]
[421955910,1778368248000,-13536.34234308,0.0004176,2]
[421955916,1778368248000,-943.0,0.00041774,60]
[421955928,1778368248000,-1202.89117496,0.00041789,2]
[421955918,1778368248000,-943.0,0.00041774,60]
[421955927,1778368248000,-183.44,0.00041787,2]
[421955925,1778368248000,-250.0,0.00041781,120]
[421955923,1778368248000,-1000.0,0.00041781,120]
[421955922,1778368248000,-1000.0,0.00041781,120]
[421955921,1778368248000,-264.0,0.00041774,60]
[421955924,1778368248000,-1891.24032894,0.00041781,120]
[421955920,1778368248000,-943.0,0.00041774,60]
[421955929,1778368248000,-1000.0,0.00041799,120]
[421955939,1778368248000,-1114.77585957,0.00041801,15]
[421955931,1778368248000,-160.0,0.000418,70]
[421955903,1778368248000,-13888.4716186,0.00041747,2]
[421955919,1778368248000,-943.0,0.00041774,60]
[421955904,1778368248000,-3807.88,0.0004175,120]
[421955882,1778368248000,-151.0,0.00041538,120]
[421955901,1778368248000,-1000.0,0.00041734,120]
[421955880,1778368248000,-151.0,0.00041538,30]
[421955877,1778368248000,-1252.270047,0.00041538,30]
[421955879,1778368248000,-151.0,0.00041538,120]
[421955878,1778368248000,-151.0,0.00041538,30]
[421955874,1778368248000,-1252.270047,0.00041538,30]
[421955876,1778368248000,-1252.270047,0.00041538,30]
[421955875,1778368248000,-1252.270047,0.00041538,30]
[421955930,1778368248000,-1000.0,0.000418,30]
[421955891,1778368248000,-250.0,0.00041677,120]
[421955889,1778368248000,-197.4,0.00041652,2]
[421955886,1778368248000,-159.0,0.00041566,2]
[421955890,1778368248000,-150.0,0.00041652,120]
[421955887,1778368248000,-154.45974035,0.00041584,2]
[421955885,1778368248000,-1000.0,0.00041555,120]
[421955881,1778368248000,-151.0,0.00041538,120]
[421955888,1778368248000,-153.74,0.00041617,120]
[421955883,1778368248000,-370.60193955,0.00041543,13]
[421955884,1778368248000,-1000.0,0.00041547,120]
[421955892,1778368248000,-1143.1,0.00041694,120]
[421955893,1778368248000,-799.0,0.00041699,7]
[421955895,1778368248000,-160.0,0.000417,70]
[421955894,1778368248000,-190.0,0.000417,120]
[421955898,1778368248000,-672.0,0.000417,30]
[421955897,1778368248000,-314.0,0.000417,30]
[421955899,1778368248000,-250.0,0.00041707,120]
[421955900,1778368248000,-153.74,0.00041717,120]
[421955902,1778368248000,-1000.0,0.00041745,120]
[421955896,1778368248000,-1000.0,0.000417,30]
[421955932,1778368248000,-250.0,0.000418,120]
[421955926,1778368248000,-250.0,0.00041781,120]
[421955936,1778368248000,-1000.0,0.00041801,15]
[421955976,1778368248000,-167.0,0.00041853,120]
[421955964,1778368248000,-151.0,0.00041853,120]
[421955968,1778368248000,-151.0,0.00041853,120]
[421955967,1778368248000,-151.0,0.00041853,120]
[421955972,1778368248000,-162.0,0.00041853,120]
[421955974,1778368248000,-30000.0,0.00041853,2]
[421955969,1778368248000,-151.0,0.00041853,120]
[421955970,1778368248000,-151.0,0.00041853,120]
[421955971,1778368248000,-157.0,0.00041853,120]
[421955973,1778368248000,-172.0,0.00041853,120]
[421955981,1778368248000,-240.66864564,0.00041856,120]
[421955980,1778368248000,-151.0,0.00041854,14]
[421955990,1778368248000,-304.39705839,0.00041857,120]
[421955983,1778368248000,-530.0,0.00041857,30]
[421955991,1778368248000,-150.0,0.00041857,6]
[421955989,1778368248000,-211.6686259,0.00041857,120]
[421955979,1778368248000,-151.0,0.00041854,14]
[421955982,1778368248000,-165.06492088,0.00041857,30]
[421955987,1778368248000,-435.49217466,0.00041857,120]
[421955985,1778368248000,-225.29487712,0.00041857,120]
[421955984,1778368248000,-549.0,0.00041857,30]
[421955988,1778368248000,-392.30247129,0.00041857,120]
[421955986,1778368248000,-1825.72542824,0.00041857,120]
[421955992,1778368248000,-255.0384141,0.00041857,120]
[421955994,1778368248000,-494.81764384,0.00041857,120]
[421955993,1778368248000,-472.46259,0.00041857,120]
[421955933,1778368248000,-1000.0,0.00041801,15]
[421955966,1778368248000,-248.480614,0.00041853,120]
[421955975,1778368248000,-175.56,0.00041853,10]
[421955978,1778368248000,-162.0,0.00041853,120]
[421955965,1778368248000,-151.0,0.00041853,120]
[421955977,1778368248000,-435.0,0.00041853,120]
[421955935,1778368248000,-1000.0,0.00041801,15]
[421955938,1778368248000,-1000.0,0.00041801,15]
[421955937,1778368248000,-1000.0,0.00041801,15]
[421955941,1778368248000,-1000.0,0.00041801,15]
[421955940,1778368248000,-1000.0,0.00041801,15]
[421955943,1778368248000,-1000.0,0.00041801,15]
[421955952,1778368248000,-208.261282,0.00041801,28]
[421955945,1778368248000,-1000.0,0.00041801,15]
[421955944,1778368248000,-1000.0,0.00041801,15]
[421955946,1778368248000,-158.8797288,0.00041801,15]
[421955942,1778368248000,-1000.0,0.00041801,15]
[421955947,1778368248000,-1485.283808,0.00041801,120]
[421955951,1778368248000,-208.261282,0.00041801,28]
[421955934,1778368248000,-1000.0,0.00041801,15]
[421955950,1778368248000,-1485.283808,0.00041801,120]
[421955949,1778368248000,-1485.283808,0.00041801,120]
[421955963,1778368248000,-250.0,0.0004185,120]
[421955960,1778368248000,-301.64693418,0.00041843,7]
[421955958,1778368248000,-152.0,0.00041817,30]
[421955961,1778368248000,-1000.0,0.00041846,120]
[421955957,1778368248000,-153.74,0.00041817,120]
[421955962,1778368248000,-230.68,0.00041848,120]
[421955954,1778368248000,-208.261282,0.00041801,28]
[421955955,1778368248000,-152.0,0.00041814,7]
[421955956,1778368248000,-152.0,0.00041814,7]
[421955953,1778368248000,-208.261282,0.00041801,28]
[421955948,1778368248000,-1485.283808,0.00041801,120]
[421955959,1778368248000,-250.0,0.00041835,120]
[421956037,1778368249000,-1198.27551,0.00041858,120]
[421956034,1778368249000,-1198.27552,0.00041858,120]
[421956040,1778368249000,-154.45974035,0.00041858,2]
[421956025,1778368249000,-208.261282,0.00041858,28]
[421956032,1778368249000,-208.261278,0.00041858,28]
[421956027,1778368249000,-208.261282,0.00041858,28]
[421956033,1778368249000,-1198.27551,0.00041858,120]
[421956024,1778368249000,-208.261282,0.00041858,28]
[421956023,1778368249000,-208.261282,0.00041858,28]
[421956030,1778368249000,-208.261282,0.00041858,28]
[421956035,1778368249000,-1198.27551,0.00041858,120]
[421956031,1778368249000,-208.261282,0.00041858,28]
[421956041,1778368249000,-161.0,0.00041858,120]
[421956045,1778368249000,-18756.17091854,0.00041859,30]
[421956038,1778368249000,-2005.9555727,0.00041858,30]
[421956036,1778368249000,-1198.27551,0.00041858,120]
[421956042,1778368249000,-156.0,0.00041858,120]
[421956047,1778368249000,-150.67336317,0.00041859,120]
[421956043,1778368249000,-156.0,0.00041858,120]
[421956044,1778368249000,-155.0,0.00041858,120]
[421956053,1778368249000,-1537.0,0.00041859,30]
[421956046,1778368249000,-18756.17091854,0.00041859,30]
[421956052,1778368249000,-1537.0,0.00041859,30]
[421956048,1778368249000,-600.0,0.00041859,120]
[421956051,1778368249000,-1537.0,0.00041859,30]
[421956050,1778368249000,-1537.0,0.00041859,30]
[421956028,1778368249000,-208.261282,0.00041858,28]
[421956039,1778368249000,-155.0,0.00041858,120]
[421956022,1778368249000,-208.261282,0.00041858,28]
[421956049,1778368249000,-1300.0,0.00041859,120]
[421956029,1778368249000,-208.261282,0.00041858,28]
[421956000,1778368249000,-269.02616168,0.00041857,30]
[421955995,1778368249000,-216.53393623,0.00041857,120]
[421956004,1778368249000,-520.34722443,0.00041858,120]
[421955998,1778368249000,-151.0,0.00041857,120]
[421956001,1778368249000,-151.0,0.00041857,120]
[421956002,1778368249000,-15724.4191,0.00041857,120]
[421956003,1778368249000,-495.56878517,0.00041858,120]
[421955996,1778368249000,-179.02219684,0.00041857,120]
[421955999,1778368249000,-151.0,0.00041857,120]
[421955997,1778368249000,-200.0,0.00041857,7]
[421956006,1778368249000,-151.0,0.00041858,120]
[421956012,1778368249000,-1485.283808,0.00041858,120]
[421956011,1778368249000,-1485.283808,0.00041858,120]
[421956007,1778368249000,-151.0,0.00041858,120]
[421956008,1778368249000,-250.0,0.00041858,30]
[421956015,1778368249000,-1485.283808,0.00041858,120]
[421956005,1778368249000,-233.701847,0.00041858,120]
[421956017,1778368249000,-1485.283808,0.00041858,120]
[421956014,1778368249000,-1485.283808,0.00041858,120]
[421956010,1778368249000,-1485.283808,0.00041858,120]
[421956016,1778368249000,-1485.283808,0.00041858,120]
[421956018,1778368249000,-1485.283808,0.00041858,120]
[421956013,1778368249000,-1485.283808,0.00041858,120]
[421956009,1778368249000,-1485.283808,0.00041858,120]
[421956021,1778368249000,-208.261282,0.00041858,28]
[421956019,1778368249000,-1485.283808,0.00041858,120]
[421956020,1778368249000,-1485.2838154,0.00041858,120]
[421956026,1778368249000,-208.261282,0.00041858,28]
[421956054,1778368249000,-1537.0,0.00041859,30]
[421956116,1778368249000,-299.308539,0.0004186,120]
[421956065,1778368249000,-152.0,0.00041859,30]
[421956083,1778368249000,-892.95,0.0004186,120]
[421956082,1778368249000,-892.95,0.0004186,120]
[421956091,1778368249000,-151.0,0.0004186,120]
[421956093,1778368249000,-151.0,0.0004186,120]
[421956094,1778368249000,-151.0,0.0004186,120]
[421956092,1778368249000,-151.0,0.0004186,120]
[421956102,1778368249000,-151.0,0.0004186,120]
[421956095,1778368249000,-151.0,0.0004186,120]
[421956096,1778368249000,-226.997831,0.0004186,120]
[421956097,1778368249000,-151.0,0.0004186,120]
[421956099,1778368249000,-151.0,0.0004186,120]
[421956101,1778368249000,-151.0,0.0004186,120]
[421956098,1778368249000,-151.0,0.0004186,120]
[421956100,1778368249000,-151.0,0.0004186,120]
[421956104,1778368249000,-151.0,0.0004186,120]
[421956103,1778368249000,-151.0,0.0004186,120]
[421956106,1778368249000,-151.0,0.0004186,120]
[421956115,1778368249000,-299.308539,0.0004186,120]
[421956105,1778368249000,-151.0,0.0004186,120]
[421956114,1778368249000,-299.308539,0.0004186,120]
[421956107,1778368249000,-151.0,0.0004186,120]
[421956110,1778368249000,-299.308539,0.0004186,120]
[421956109,1778368249000,-291.179937,0.0004186,120]
[421956112,1778368249000,-299.308539,0.0004186,120]
[421956108,1778368249000,-151.0,0.0004186,120]
[421956113,1778368249000,-299.308539,0.0004186,120]
[421956064,1778368249000,-152.0,0.00041859,30]
[421956084,1778368249000,-892.95,0.0004186,120]
[421956090,1778368249000,-151.0,0.0004186,120]
[421956111,1778368249000,-299.308539,0.0004186,120]
[421956087,1778368249000,-151.0,0.0004186,120]
[421956089,1778368249000,-151.0,0.0004186,120]
[421956055,1778368249000,-1169.58048992,0.00041859,30]
[421956056,1778368249000,-151.0,0.00041859,30]
[421956057,1778368249000,-151.0,0.00041859,30]
[421956061,1778368249000,-188.08943476,0.00041859,30]
[421956062,1778368249000,-152.0,0.00041859,30]
[421956059,1778368249000,-151.0,0.00041859,30]
[421956063,1778368249000,-152.0,0.00041859,30]
[421956060,1778368249000,-151.0,0.00041859,30]
[421956058,1778368249000,-151.0,0.00041859,30]
[421956067,1778368249000,-159.1169669,0.00041859,30]
[421956079,1778368249000,-892.95,0.0004186,120]
[421956068,1778368249000,-155.88401794,0.00041859,30]
[421956073,1778368249000,-892.95,0.0004186,120]
[421956066,1778368249000,-152.0,0.00041859,30]
[421956072,1778368249000,-1000.0,0.0004186,120]
[421956071,1778368249000,-250.0,0.0004186,110]
[421956085,1778368249000,-188.051988,0.0004186,120]
[421956080,1778368249000,-892.95,0.0004186,120]
[421956086,1778368249000,-151.0,0.0004186,120]
[421956081,1778368249000,-892.95,0.0004186,120]
[421956076,1778368249000,-892.95,0.0004186,120]
[421956088,1778368249000,-151.0,0.0004186,120]
[421956069,1778368249000,-241.36707265,0.00041859,30]
[421956077,1778368249000,-892.95,0.0004186,120]
[421956075,1778368249000,-892.95,0.0004186,120]
[421956070,1778368249000,-24286.30491817,0.00041859,7]
[421956078,1778368249000,-892.95,0.0004186,120]
[421956074,1778368249000,-892.95,0.0004186,120]
[421956154,1778368250000,-151.0,0.0004186,120]
[421956155,1778368250000,-151.0,0.0004186,120]
[421956156,1778368250000,-4881.304762,0.0004186,14]
[421956153,1778368250000,-151.0,0.0004186,120]
[421956149,1778368250000,-151.0,0.0004186,120]
[421956148,1778368250000,-4881.304762,0.0004186,14]
[421956150,1778368250000,-4881.304762,0.0004186,14]
[421956145,1778368250000,-151.0,0.0004186,120]
[421956161,1778368250000,-424.823195,0.0004186,120]
[421956146,1778368250000,-4881.304762,0.0004186,14]
[421956152,1778368250000,-4881.304762,0.0004186,14]
[421956141,1778368250000,-4881.304762,0.0004186,14]
[421956173,1778368250000,-4881.304772,0.0004186,14]
[421956157,1778368250000,-424.823195,0.0004186,120]
[421956158,1778368250000,-295.059288,0.0004186,120]
[421956160,1778368250000,-4881.304762,0.0004186,14]
[421956162,1778368250000,-4881.304762,0.0004186,14]
[421956163,1778368250000,-424.823195,0.0004186,120]
[421956165,1778368250000,-424.823195,0.0004186,120]
[421956164,1778368250000,-4881.304762,0.0004186,14]
[421956169,1778368250000,-424.823195,0.0004186,120]
[421956167,1778368250000,-424.823195,0.0004186,120]
[421956170,1778368250000,-4881.304762,0.0004186,14]
[421956147,1778368250000,-151.0,0.0004186,120]
[421956175,1778368250000,-424.823195,0.0004186,120]
[421956159,1778368250000,-163.266789,0.0004186,120]
[421956151,1778368250000,-151.0,0.0004186,120]
[421956132,1778368250000,-151.0,0.0004186,7]
[421956142,1778368250000,-151.0,0.0004186,120]
[421956171,1778368250000,-424.823195,0.0004186,120]
[421956117,1778368250000,-299.308539,0.0004186,120]
[421956118,1778368250000,-299.308539,0.0004186,120]
[421956124,1778368250000,-151.0,0.0004186,120]
[421956123,1778368250000,-151.0,0.0004186,120]
[421956121,1778368250000,-299.308536,0.0004186,120]
[421956127,1778368250000,-170.310563,0.0004186,120]
[421956119,1778368250000,-299.308539,0.0004186,120]
[421956120,1778368250000,-299.308539,0.0004186,120]
[421956126,1778368250000,-151.0,0.0004186,120]
[421956122,1778368250000,-151.0,0.0004186,120]
[421956125,1778368250000,-151.0,0.0004186,120]
[421956128,1778368250000,-151.0,0.0004186,7]
[421956130,1778368250000,-151.0,0.0004186,7]
[421956129,1778368250000,-151.0,0.0004186,7]
[421956133,1778368250000,-151.0,0.0004186,7]
[421956131,1778368250000,-151.0,0.0004186,7]
[421956134,1778368250000,-151.0,0.0004186,120]
[421956139,1778368250000,-4881.304762,0.0004186,14]
[421956135,1778368250000,-151.0,0.0004186,120]
[421956137,1778368250000,-151.0,0.0004186,120]
[421956138,1778368250000,-4881.304762,0.0004186,14]
[421956136,1778368250000,-151.0,0.0004186,120]
[421956144,1778368250000,-151.0,0.0004186,120]
[421956140,1778368250000,-151.0,0.0004186,120]
[421956143,1778368250000,-4881.304762,0.0004186,14]
[421956174,1778368250000,-424.823195,0.0004186,120]
[421956182,1778368250000,-151.0,0.0004186,120]
[421956172,1778368250000,-424.823195,0.0004186,120]
[421956206,1778368250000,-1252.270047,0.0004186,30]
[421956203,1778368250000,-1252.270047,0.0004186,30]
[421956208,1778368250000,-1252.270047,0.0004186,30]
[421956207,1778368250000,-1252.270047,0.0004186,30]
[421956201,1778368250000,-246.148494,0.0004186,7]
[421956210,1778368250000,-1252.270047,0.0004186,30]
[421956223,1778368250000,-151.0,0.0004186,120]
[421956222,1778368250000,-151.0,0.0004186,120]
[421956212,1778368250000,-1252.270047,0.0004186,30]
[421956211,1778368250000,-1252.270047,0.0004186,30]
[421956219,1778368250000,-151.0,0.0004186,30]
[421956217,1778368250000,-1252.270041,0.0004186,30]
[421956209,1778368250000,-1252.270047,0.0004186,30]
[421956216,1778368250000,-1252.270047,0.0004186,30]
[421956168,1778368250000,-4881.304762,0.0004186,14]
[421956221,1778368250000,-151.0,0.0004186,30]
[421956213,1778368250000,-1252.270047,0.0004186,30]
[421956220,1778368250000,-151.0,0.0004186,30]
[421956218,1778368250000,-151.0,0.0004186,30]
[421956225,1778368250000,-151.0,0.0004186,120]
[421956224,1778368250000,-151.0,0.0004186,120]
[421956228,1778368250000,-151.0,0.0004186,120]
[421956227,1778368250000,-151.0,0.0004186,120]
[421956226,1778368250000,-151.0,0.0004186,120]
[421956229,1778368250000,-151.0,0.0004186,120]
[421956230,1778368250000,-250.01,0.00041863,120]
[421956215,1778368250000,-1252.270047,0.0004186,30]
[421956205,1778368250000,-1252.270047,0.0004186,30]
[421956214,1778368250000,-1252.270047,0.0004186,30]
[421956200,1778368250000,-246.14849,0.0004186,7]
[421956204,1778368250000,-1252.270047,0.0004186,30]
[421956166,1778368250000,-4881.304762,0.0004186,14]
[421956181,1778368250000,-424.823199,0.0004186,120]
[421956186,1778368250000,-246.14849,0.0004186,7]
[421956176,1778368250000,-424.823195,0.0004186,120]
[421956177,1778368250000,-424.823195,0.0004186,120]
[421956179,1778368250000,-424.823195,0.0004186,120]
[421956187,1778368250000,-246.14849,0.0004186,7]
[421956180,1778368250000,-424.823195,0.0004186,120]
[421956183,1778368250000,-151.0,0.0004186,120]
[421956184,1778368250000,-151.0,0.0004186,120]
[421956185,1778368250000,-151.0,0.0004186,120]
[421956178,1778368250000,-424.823195,0.0004186,120]
[421956194,1778368250000,-246.14849,0.0004186,7]
[421956202,1778368250000,-1252.270047,0.0004186,30]
[421956190,1778368250000,-246.14849,0.0004186,7]
[421956193,1778368250000,-246.14849,0.0004186,7]
[421956192,1778368250000,-246.14849,0.0004186,7]
[421956188,1778368250000,-246.14849,0.0004186,7]
[421956191,1778368250000,-246.14849,0.0004186,7]
[421956198,1778368250000,-246.14849,0.0004186,7]
[421956189,1778368250000,-246.14849,0.0004186,7]
[421956195,1778368250000,-246.14849,0.0004186,7]
[421956199,1778368250000,-246.14849,0.0004186,7]
[421956196,1778368250000,-246.14849,0.0004186,7]
[421956197,1778368250000,-246.14849,0.0004186,7]
[421956254,1778368251000,-3000.0,0.00041888,120]
[421956253,1778368251000,-3000.0,0.00041888,120]
[421956252,1778368251000,-3000.0,0.00041888,120]
[421956249,1778368251000,-3000.0,0.00041888,120]
[421956250,1778368251000,-3000.0,0.00041888,120]
[421956251,1778368251000,-3000.0,0.00041888,120]
[421956258,1778368251000,-3000.0,0.00041888,120]
[421956267,1778368251000,-3000.0,0.00041888,120]